Cogmind - Beta 14 @@@ ROGUE MODE // 2024.10.18 @ 15:58:24 Player: canerib Result: Destroyed by Y-45 Defender with Heavy Assault Rifle Performance ------------- Evolutions (2) 1000 Regions Visited (5) 1000 Robots Destroyed (54) 270 Value Destroyed (1441) 1441 Prototype IDs (8) 160 Alien Tech Used (0) 0 Bonus (33) 33 TOTAL SCORE: 3904 Bonus ------- High Alert Combat Kills 33 Cogmind --------- Core Integrity 0/550 Matter 288/300 Energy 456/500 System Corruption 0% Temperature Cool (0) Movement Walking (130) Location -8/Storage Parts ------- > --- POWER (1) -------- F-cell Engine > --- PROPULSION (6) --- Titanium Leg > --- UTILITY (2) ------ Hacking Suite > --- WEAPON (2) ------- (None) > --- INVENTORY (5) ---- Flight Unit Large Battery (200) Weight Redist. System Visual Processing Unit Datajack Peak State ------------ > --- POWER ------------ F-cell Engine > --- PROPULSION ------- Carbon-fiber Leg Improved Hover Unit Improved Flight Unit Improved VTOL Module > --- UTILITY ---------- Hacking Suite System Shield > --- WEAPON ----------- Heavy Particle Gun Heavy Particle Gun > --- INVENTORY -------- Improved Ion Engine Large Battery Weight Redist. System Visual Processing Unit Datajack [Rating: 32] Favorites ----------- Power Ion Engine Engine Ion Engine Power Core Nuclear Core Propulsion Aluminum Leg Leg Aluminum Leg Hover Unit Hover Unit Flight Unit Improved VTOL Module Utility Hacking Suite Device Sensor Array Storage Medium Storage Unit Hackware Hacking Suite Weapon Small Laser Energy Gun Small Laser Energy Cannon Advanced Beam Cannon Ballistic Gun Assault Rifle Launcher Advanced EMP Blaster Build | -11 -10 -10 -9 -8 -8 ------- Run | Yrd Mat Min Mat Mat Sto Slots Evolved 4 | . . . 2 2 . Power . | . . . . . . Propulsion 4 | . . . 2 2 . Utility . | . . . . . . Weapon . | . . . . . . Parts Attached 65 | 7 4 1 20 9 24 Power 8 | 1 1 1 . 1 4 Engine 7 | 1 1 . . 1 4 Core 1 | . . 1 . . . Reactor . | . . . . . . Propulsion 36 | 2 1 . 11 7 15 Treads . | . . . . . . Leg 15 | 2 1 . 4 . 8 Wheel . | . . . . . . Hover 10 | . . . 4 5 1 Flight 11 | . . . 3 2 6 Utility 8 | 2 2 . 2 1 1 Device 3 | 1 1 . 1 . . Storage 3 | 1 1 . . 1 . Processor . | . . . . . . Hackware 2 | . . . 1 . 1 Protection . | . . . . . . Artifact . | . . . . . . Weapon 13 | 2 . . 7 . 4 Energy Gun 9 | 2 . . 4 . 3 Energy Cannon 1 | . . . 1 . . Ballistic Gun 2 | . . . 2 . . Ballistic Cannon . | . . . . . . Launcher 1 | . . . . . 1 Special Weapon . | . . . . . . Impact Weapon . | . . . . . . Slashing Weapon . | . . . . . . Piercing Weapon . | . . . . . . Special Melee Weapon . | . . . . . . Unidentified Prototypes 6 | . . . 1 1 4 Parts Lost 31 | . 1 . 6 4 20 Power 4 | . 1 . 1 . 2 Propulsion 21 | . . . 3 3 15 Utility 3 | . . . 1 1 1 Weapon 3 | . . . 1 . 2 Highest Loss Streak 10 | . 1 . 6 3 10 To Critical Strikes 1 | . . . . . 1 Average Slot Usage (%) 87 | . 98 100 86 87 79 Engine 5 | . 12 5 . 6 6 Core 2 | . . 8 7 . . Leg 18 | . 28 28 23 . 14 Hover 10 | . . . 11 37 7 Flight 8 | . . . 5 9 17 Device 6 | . 14 14 7 5 . Storage 8 | . 14 14 8 1 6 Hackware 5 | . . . . 9 10 Energy Gun 17 | . 28 28 16 . 16 Ballistic Gun 3 | . . . 3 18 . Peak Build Rating 32 | 9 9 10 13 23 32 Average Rating 16 | 4 8 9 10 19 26 On Entrance 9 | . 9 7 10 12 17 Naked Turns . | . . . . . . Heaviest Build 21 | 13 18 20 21 12 21 Greatest Support 50 | 20 20 20 40 28 50 Greatest Overweight (x) 4 | 1 . . 1 1 4 Average Overweight (x) . | . . . . . . Largest Inventory Capacity 10 | 8 10 10 10 5 5 Average Capacity 7 | 7 9 10 8 5 5 Most Carried 10 | 5 8 10 10 5 5 Average Carried 5 | 3 3 9 7 4 4 Final Capacity 10 | 8 10 10 5 5 5 Final Carried 10 | 2 7 10 5 5 5 Class Distribution -------------------- 49% | Mutant 44% | Scavenger-Mutant 3% | Hacker-Mutant Dominant Class ---------------- Mutant | -10/Materials Mutant | -10/Mines Scavenger-Mutant | -9/Materials Scavenger-Mutant | -8/Materials Scavenger-Mutant | -8/Storage Resources | -11 -10 -10 -9 -8 -8 ----------- Run | Yrd Mat Min Mat Mat Sto Matter Collected 998 | 250 50 20 215 210 253 Remotely . | . . . . . . Salvage Created 1996 | 105 179 102 457 280 873 Parts 121 | 4 17 6 25 15 54 Haulers Intercepted 1 | . . . . . 1 Recyclers Shooed 6 | . 2 . 1 2 1 Parts Field Recycled . | . . . . . . Retrieved Matter . | . . . . . . Parts Self-Destructed . | . . . . . . Prevented . | . . . . . . Kills | -11 -10 -10 -9 -8 -8 ------- Run | Yrd Mat Min Mat Mat Sto Combat Hostiles Destroyed 37 | . 5 2 10 6 14 Guns 36 | . 5 2 10 6 13 Classes Destroyed 10 | 2 3 1 3 . 1 Worker 3 | . . 1 . . 2 Builder 1 | . . . 1 . . Tunneler 1 | 1 . . . . . Hauler 1 | . . . . . 1 Recycler 4 | 1 . . . 1 2 Operator 2 | . . . 1 1 . Watcher 5 | . 2 . 1 . 2 Swarmer 10 | . 3 . . 3 4 Grunt 18 | . 2 2 7 3 4 Sentry 9 | . . . 3 . 6 Best Kill Streak 8 | 2 4 2 5 4 8 Combat Bots Only 5 | . 3 2 5 2 4 Max Kills in Single Turn 2 | 1 2 1 1 1 2 Gunslinging 1 | . 1 . . . 1 Exploded . | . . . . . . Melee . | . . . . . . Uniques/NPCs Destroyed . | . . . . . . Combat | -11 -10 -10 -9 -8 -8 -------- Run | Yrd Mat Min Mat Mat Sto Hostile Shots Fired 362 | . 33 11 75 48 195 Missed 106 | . 9 2 18 13 64 Damage Taken 3485 | . 221 160 806 468 1830 Core 867 | . 50 47 219 118 433 Absorbed by Shields . | . . . . . . Core Remaining (%) 68 | 100 . 61 45 . . Volleys Fired 193 | 5 31 9 47 39 62 Largest 2 | 2 2 2 2 2 2 Hottest 110 | 80 80 80 105 40 110 Shots Fired 351 | 10 62 18 80 65 116 Gun 351 | 10 62 18 80 65 116 Cannon . | . . . . . . Launcher . | . . . . . . Special . | . . . . . . Kinetic 73 | . . . 8 65 . Thermal 278 | 10 62 18 72 . 116 Explosive . | . . . . . . Electromagnetic . | . . . . . . Robot Hit Streak 20 | 1 6 8 10 20 18 Robot Miss Streak 4 | 3 3 4 4 2 3 Penetration Max . | . . . . . . Secondary Targets 6 | . 1 1 1 . 3 Max Gunslinging Chain 1 | . 1 1 1 . 1 Shots Hit Robots 232 | 3 38 11 59 51 70 Core Hits 111 | 3 16 6 34 16 36 Critical Kills . | . . . . . . Critical Parts Destroyed . | . . . . . . Critical Strikes 2 | . . . . . 2 Burn 2 | . . . . . 2 Melee Attacks . | . . . . . . Impact . | . . . . . . Slashing . | . . . . . . Piercing . | . . . . . . Sneak Attacks . | . . . . . . Combat Hostiles . | . . . . . . Follow-up Attacks . | . . . . . . Damage Inflicted 3412 | 34 480 122 701 667 1408 Guns 3369 | 34 480 122 701 643 1389 Cannons . | . . . . . . Explosions . | . . . . . . Melee . | . . . . . . Ramming 43 | . . . . 24 19 Kinetic 687 | . . . 44 643 . Thermal 2682 | 34 480 122 657 . 1389 Explosive . | . . . . . . Electromagnetic . | . . . . . . Impact . | . . . . . . Slashing . | . . . . . . Piercing . | . . . . . . Highest Corruption . | . . . . . . Average Corruption . | . . . . . . Corruption Purged . | . . . . . . Corruption Blocked . | . . . . . . Overload Shots . | . . . . . . Overflow Damage . | . . . . . . Projectiles . | . . . . . . Explosions . | . . . . . . Melee . | . . . . . . Knockbacks 1 | . . . . 1 . Impact 1 | . . . . 1 . Kinetic . | . . . . . . Secondary . | . . . . . . Self-Inflicted Damage 12 | . . . . 12 . Shots . | . . . . . . Rammed 3 | . . . . 3 . Targets Rammed 12 | . 1 . . 3 8 Kicked 9 | . 1 . . . 8 Crushed . | . . . . . . Highest Temperature 594 | 54 144 201 594 20 354 Average Temperature 93 | 25 36 82 196 4 69 Received Heat Transfer 1365 | . 48 93 351 252 621 Effects 10 | . . . 10 . . Shutdowns 1 | . . . 1 . . Energy Bleed 3 | . . . 3 . . Interference 1 | . . . 1 . . Matter Decay 1 | . . . 1 . . Short Circuit 3 | . . . 3 . . Damage (minor) 1 | . . . 1 . . Siege Activations . | . . . . . . Robots Corrupted . | . . . . . . Combat Hostiles . | . . . . . . Parts Fried . | . . . . . . Impact Corruptions . | . . . . . . Robots Melted 1 | . . . . . 1 Combat Hostiles 1 | . . . . . 1 Parts Melted 11 | . . . 4 . 7 Heat Transferred 5651 | 75 1075 275 1340 . 2886 Parts Sabotaged . | . . . . . . Parts Stolen . | . . . . . . Parts Stripped . | . . . . . . Power Chain Reactions . | . . . . . . Alert | -11 -10 -10 -9 -8 -8 ------- Run | Yrd Mat Min Mat Mat Sto Peak Influence 472 | 10 226 157 343 343 472 Initial 144 | . 6 87 61 78 144 Average 170 | 5 131 152 153 218 209 Maximum Alert Level 2 | . 1 . 1 1 2 Low Security (%) 66 | 100 69 100 75 49 48 Level 1 29 | . 30 . 24 50 37 Level 2 4 | . . . . . 13 Level 3 . | . . . . . . Level 4 . | . . . . . . Level 5 . | . . . . . . High Security . | . . . . . . Max Security . | . . . . . . Squads Dispatched 6 | . 2 . 3 1 . Investigation 1 | . . . 1 . . Extermination . | . . . . . . Reinforcement 5 | . 2 . 2 1 . Assault . | . . . . . . Garrison . | . . . . . . Intercept . | . . . . . . Searches Triggered . | . . . . . . Construction Impeded . | . . . . . . Haulers Reinforced . | . . . . . . Active Scanning Responses . | . . . . . . Cargo Convoy Interrupts . | . . . . . . Stealth | -11 -10 -10 -9 -8 -8 --------- Run | Yrd Mat Min Mat Mat Sto Distress Signals 1 | . . . . . 1 Communications Jammed . | . . . . . . Distress Signals . | . . . . . . Times Spotted 70 | . 13 2 17 12 26 Peak Tracking Total 7 | . 4 2 6 4 7 Tactical Retreats 4 | . . . 1 2 1 Traps | -11 -10 -10 -9 -8 -8 ------- Run | Yrd Mat Min Mat Mat Sto Traps Triggered 4 | . . . 1 . 3 Indirectly . | . . . . . . Trap Hack Attempts . | . . . . . . Triggered . | . . . . . . Disarmed . | . . . . . . Reprogrammed . | . . . . . . Reused . | . . . . . . Traps Extracted . | . . . . . . Installed . | . . . . . . Triggered . | . . . . . . Machines | -11 -10 -10 -9 -8 -8 ---------- Run | Yrd Mat Min Mat Mat Sto Machines Disabled 2 | . . . . . 2 Max in Single Turn 1 | . . . . . 1 Machines Repaired . | . . . . . . Machines Dismantled . | . . . . . . Machines Sabotaged . | . . . . . . Overloaded Fab Kills . | . . . . . . Hacking | -11 -10 -10 -9 -8 -8 --------- Run | Yrd Mat Min Mat Mat Sto Machines Accessed 16 | . 4 1 3 3 5 Terminals 13 | . 3 . 3 2 5 Fabricators . | . . . . . . Repair Stations . | . . . . . . Recycling Units 1 | . 1 . . . . Scanalyzers 1 | . . . . 1 . Garrison Access . | . . . . . . Total Hacks 45 | . 14 1 8 6 16 Successful 27 | . 9 1 6 3 8 Failed 18 | . 5 . 2 3 8 Catastrophic 2 | . . . 1 . 1 Database Lockouts . | . . . . . . Manual 8 | . 2 . . . 6 Terminals 38 | . 9 . 8 5 16 Fabricators . | . . . . . . Repair Stations . | . . . . . . Recycling Units 5 | . 5 . . . . Scanalyzers 1 | . . . . 1 . Garrison Access . | . . . . . . Terminal Hacks 24 | . 6 1 6 3 8 Record 4 | . . . 2 2 . Part Schematic 1 | . . . . . 1 Prototype ID Bank 1 | . 1 . . . . Open Door 3 | . . 1 . . 2 Level Access Points 1 | . . . . . 1 Branch Access Points 2 | . 1 . . . 1 Emergency Access Points 2 | . . . 1 1 . Alert Level 1 | . . . 1 . . Unreport Threat 2 | . . . . . 2 Locate Traps 1 | . . . . . 1 Dispatch Records 2 | . 1 . 1 . . Patrol Status 1 | . 1 . . . . Assault Status 1 | . . . 1 . . Hauler Manifests 1 | . 1 . . . . Zone Layout 1 | . 1 . . . . Fabricator Hacks . | . . . . . . Repair Station Hacks . | . . . . . . Recycling Unit Hacks 3 | . 3 . . . . Recycle Component 1 | . 1 . . . . Process 1 | . 1 . . . . Report Inventory 1 | . 1 . . . . Scanalyzer . | . . . . . . Garrison Access Hacks . | . . . . . . Unauthorized Hacks . | . . . . . . Terminals . | . . . . . . Fabricators . | . . . . . . Repair Stations . | . . . . . . Recycling Units . | . . . . . . Scanalyzers . | . . . . . . Garrison Access . | . . . . . . Data Cores Recovered . | . . . . . . Used . | . . . . . . Hacking Detections 10 | . 3 . 3 1 3 Full Trace Events 1 | . . . 1 . . Feedback Events . | . . . . . . Feedback Blocked . | . . . . . . Robot Schematics Acquired . | . . . . . . Robots Built . | . . . . . . Authchips . | . . . . . . Time . | . . . . . . Total Robot Build Rating . | . . . . . . Part Schematics Acquired 1 | . . . . . 1 Parts Built . | . . . . . . Authchips . | . . . . . . Time . | . . . . . . Total Part Build Rating . | . . . . . . Parts Repaired . | . . . . . . Time . | . . . . . . Parts Recycled 1 | . 1 . . . . Recycled Matter 78 | . 78 . . . . Retrieved Matter . | . . . . . . Retrieved Components . | . . . . . . Parts Scanalyzed . | . . . . . . Part Schematics Acquired . | . . . . . . Parts Damaged . | . . . . . . Bothacking | -11 -10 -10 -9 -8 -8 ------------ Run | Yrd Mat Min Mat Mat Sto Used RIF Installer . | . . . . . . Robots Hacked . | . . . . . . Non-combat . | . . . . . . Combat . | . . . . . . Robot Hacks Applied . | . . . . . . Relay Couplers Released . | . . . . . . Fabnet Peak Effective % . | . . . . . . Robots Rewired . | . . . . . . Allies Hacked . | . . . . . . Hacks Repelled . | . . . . . . Allies | -11 -10 -10 -9 -8 -8 -------- Run | Yrd Mat Min Mat Mat Sto Total Allies . | . . . . . . Largest Group . | . . . . . . Highest-Rated Group . | . . . . . . Highest-Rated Ally . | . . . . . . Total Orders . | . . . . . . Ally Attacks . | . . . . . . Total Damage . | . . . . . . Kills . | . . . . . . Allies Corrupted . | . . . . . . Allies Melted . | . . . . . . Intel | -11 -10 -10 -9 -8 -8 ------- Run | Yrd Mat Min Mat Mat Sto Robot Analysis Total . | . . . . . . Derelict Logs Recovered 1 | . . 1 . . . Drone Launches . | . . . . . . Drone Recoveries . | . . . . . . Exploration | -11 -10 -10 -9 -8 -8 ------------- Run | Yrd Mat Min Mat Mat Sto Turns Passed 2311 | 94 358 293 511 297 758 Spaces Moved 1480 | 42 206 211 378 321 322 Core 50 | 11 . . . . 39 Treads . | . . . . . . Legs 854 | 31 206 211 215 . 191 Wheels . | . . . . . . Hover 228 | . . . 2 174 52 Flight 348 | . . . 161 147 40 Fastest Speed 32 | 50 120 120 37 32 41 Average Speed 99 | 151 120 120 86 46 134 Slowest Speed 370 | 190 120 120 190 120 370 Overloaded Moves . | . . . . . . Propulsion Burnouts . | . . . . . . Robots Hopped 3 | . . . . 3 . Cave-ins Triggered . | . . . . . . Exploration Rate (%) 40 | 4 47 49 40 34 67 Regions Visited 5 Branch Regions 2 Pre-discovered Areas . | . . . . . . Known Exits Taken 2 | . 1 . . 1 . Unknown Exits Taken 3 | 1 . 1 1 . . Scrap Searched 2 | . . 2 . . . Spaces Dug . | . . . . . . Terrain Destroyed . | . . . . . . Melee . | . . . . . . Projectile . | . . . . . . AOE . | . . . . . . Terrain Rammed . | . . . . . . Walls Destroyed . | . . . . . . Machines Disabled . | . . . . . . Actions | -11 -10 -10 -9 -8 -8 --------- Run | Yrd Mat Min Mat Mat Sto Total 1973 | 62 254 235 492 401 529 Wait 115 | . . 6 17 19 73 Move 1470 | 41 205 210 377 315 322 Hop 2 | . . . . 2 . Pick Up 74 | 9 10 6 17 9 23 Fast Attach . | . . . . . . Attach 43 | 7 1 . 13 6 16 Detach . | . . . . . . Swap 22 | . 3 1 7 3 8 Drop 32 | . 3 3 14 5 7 Fire 193 | 5 31 9 47 39 62 Melee . | . . . . . . Ram 3 | . . . . 3 . Kick 9 | . 1 . . . 8 Crush . | . . . . . . Escape Stasis 10 | . . . . . 10 Rewire . | . . . . . . Trap . | . . . . . . Miscellaneous . | . . . . . . Route ------- -11/Scrapyard -10/Materials (discovered 3 exits: *Mat / *Min x2) -10/Mines (discovered 2 exits: *Mat x2) -9/Materials -8/Materials -8/Storage (discovered 2 exits: *Fac / Rec) History --------- Turn | Location | Event 10 | -11/Scrapyard | Discovered new exit (range 16) 95 | -11/Scrapyard | Entered Materials 221 | -10/Materials | Identified exit to Mines 289 | -10/Materials | Discovered new exit (range 15) 321 | -10/Materials | Build established: Mutant 453 | -10/Materials | Entered Mines 505 | -10/Mines | Discovered new exit (range 7) 571 | -10/Mines | Met a Derelict who couldn't figure out how to use a Trap Extractor 738 | -10/Mines | Discovered new exit (range 8) 746 | -10/Mines | Entered Materials 746 | -9/Materials | Evolved 2 slots: Propulsion x2 1052 | -9/Materials | Build established: Scavenger-Mutant 1135 | -9/Materials | Core integrity fell below 50% 1141 | -9/Materials | Lost 6 parts (1p3n1u1w) 1246 | -9/Materials | Discovered new exit (range 16) 1257 | -9/Materials | Entered another Materials area 1257 | -8/Materials | Evolved 2 slots: Propulsion x2 1258 | -8/Materials | Identified exit to Storage 1511 | -8/Materials | Lost 3 parts (2n1u) 1554 | -8/Materials | Entered Storage 1683 | -8/Storage | Lost 4 parts (1p3n) 1955 | -8/Storage | Core integrity fell below 50% 2123 | -8/Storage | Identified exit to Recycling 2123 | -8/Storage | Identified exit to Factory 2306 | -8/Storage | Core integrity fell below 20% 2309 | -8/Storage | Lost 10 parts (1p6n1u2w) 2312 | -8/Storage | Destroyed by Y-45 Defender with Heavy Assault Rifle Last Messages --------------- Imp. Ion Engine destroyed. Hvy. Particle Gun destroyed. Critical hit (Burn: +37). Imp. VTOL Module destroyed. Acquired Titanium Leg. Kicked G-47 Trooper out of the way. Kicked G-47 Trooper. Critical hit (Burn: +37). Kicked Y-45 Defender out of the way. Critical hit (Burn: +37). Triggered Ambush Trap. L-31 Rogue emerges from a hatch in the floor. S-10 Pest emerges from a hatch in the floor. S-10 Pest destroyed. Critical hit (Burn: +37). Critical hit (Destroy). Titanium Leg destroyed. Acquired Flight Unit. Titanium Leg severed. Acquired 15 matter. Map ----- +----------------------------------------------------+ | | | | | ########??????????????????????????????? | | """"" ##?????????????????????????????? | | """"" #?????????????????????????????? | | " " " #??????????????????????????????? | | #??????????????????????????????? | | %= #??????????????????????????????? | | #??????????????????????????????? | | ########??????????????????????????????? | | #??????????????????????? ???????????? | | #??????????????????????# < #??????????? | | #??????????????????????# #??????????? | | #??????????????????????# #??????????? | | ######?????????????????# #??????????? | | #?????????????????+ #??????????? | | #?????????????????# #??????????? | | #?????????????????# #??????????? | | ###?????????????????# #??????????? | | ?###???????????????????# #??????????? | | ???????????????????????# #??????????? | | ??????????????????####?# #####??????? | | ??????????????????? ?# ## =#??????? | | ????????????????????" # ## =#??????? | | ????????????????????" #l* ## =#??????? | | ?########???????????" +=@=## "##?????? | | ?# #???????????" #s[ # T#?????? | | ?# T ####???????" # Yg ##?????? | | ## ## ??????" ?# #####??????? | | + ## #????? ?# #??????????? | | ## ## #????#####??# #??????????? | | ?# # #???????????# Y#??????????? | | ?####+#### #####???????# #???? ????? | | #### ### + #???????# #??"" "????? | | !#T###???????# # """ ""???? | | #### ###*########????# Y a """ ""???? | | ???#####?# # ###??# # """ ??? | | ?????????#]# ""#??# # """ ???? | | ?????????#%# "" T"#??# #? ????? | | ########## # T" ""#??# #? ????? | | + "" ###??# #??####????? | | ######### #????# #?? ??????? | | #???????###########?# #? ???????? | | ^#??????? # # ????????? | | #???????? # # ?????????? | | #?????????????""""" + +??????????? | | #?????????????""""" # #??????????? | | #?????????????""""" # #??????????? | | #????????????? ?# #??????????? | | % #????????????######## ##?????????? | +----------------------------------------------------+ Best States ------------- Heat Dissipation 31 Energy Generation 19 Energy Capacity 700 Matter Stores 300 Matter Capacity 300 Sight Range 16 Robot Scan Range 14 Terrain Scan Range 16 Terrain Scan Density 10 Evasion (%) 63 Offensive Hacking 10 Defensive Hacking 10 Item Schematics ----------------- Airjet | -8/Storage | Hacked Robot Schematics ------------------ None Fabricated ------------ Nothing Alien Tech Used ----------------- None Achievements -------------- Hey, That's Mine! Challenges ------------ None Game ------ Seed CompanionGravityLink Manual? 0 Play Time 00:36:50 Cumulative 15.5 hours Start 2024.10.18 @ 15:21:51 End 2024.10.18 @ 15:58:24 Sessions 1 Manual Loads 0 Difficulty Rogue Special Mode None Game No. 25 Rogue 25 Adventurer 0 Explorer 0 Win Type - Total 0 Types 0/0/0/0/0/0/0/0/0 Lore% 10 Gallery% 21 Achievement% 21 Wizard Run 0 Options --------- Layout 1 ASCII 1 Keyboard 0 Movement Numpad Keybinds 0 Fullscreen 1 Font 48/Smallcaps Map View 76x35 Zoom Use 0% Tactical HUD 0 Map Filters NONE Filters NONE Steam 1 RUN: 46a0a367-5b0b-41b8-88e5-9fd799e5ea71